fUSD/lending_fUSD_20250930
["ID","MTS","AMOUNT","RATE_DAILY","PERIOD"]
[388523819,1759231845149,-500.0,0.00019178,2]
[388523820,1759231845159,-500.0,0.00019178,2]
[388523821,1759231845169,-400.96172729,0.00019178,2]
[388523822,1759231845178,-500.0,0.00019178,2]
[388523823,1759231845188,-532.9,0.00019178,2]
[388523824,1759231845198,-301.75222836,0.00019178,2]
[388523825,1759231845208,-517.35,0.00019178,2]
[388523826,1759231845217,-500.0,0.00019178,2]
[388523827,1759231845227,-500.0,0.00019178,2]
[388523828,1759231845236,-3181.26,0.00019178,2]
[388523829,1759231845245,-500.0,0.00019178,2]
[388523830,1759231845254,-500.0,0.00019178,2]
[388523831,1759231845263,-500.0,0.00019178,2]
[388523832,1759231845273,-500.0,0.00019178,2]
[388523833,1759231845284,-500.0,0.00019178,2]
[388523834,1759231845294,-2279.22,0.00019178,2]
[388523835,1759231845306,-400.28502965,0.00019178,2]
[388523836,1759231845317,-500.0,0.00019178,2]
[388523837,1759231845328,-500.0,0.00019178,2]
[388523838,1759231845344,-960.84,0.00019178,2]
[388523839,1759231845354,-500.0,0.00019178,2]
[388523840,1759231845364,-1150.24,0.00019178,2]
[388523841,1759231845373,-500.0,0.00019178,2]
[388523842,1759231845383,-500.0,0.00019178,2]
[388523843,1759231845393,-500.0,0.00019178,2]
[388523844,1759231845404,-500.0,0.00019178,2]
[388523845,1759231845414,-634.22,0.00019178,2]
[388523846,1759231845423,-500.0,0.00019178,2]
[388523847,1759231845434,-508.88,0.00019178,2]
[388523848,1759231845444,-500.0,0.00019178,2]
[388523849,1759231845453,-500.0,0.00019178,2]
[388523850,1759231845463,-500.0,0.00019178,2]
[388523851,1759231845473,-500.0,0.00019178,2]
[388523852,1759231845482,-500.0,0.00019178,2]
[388523853,1759231845496,-618.08,0.00019178,2]
[388523854,1759231845505,-1856.87,0.00019178,2]
[388523855,1759231845516,-500.0,0.00019178,2]
[388523856,1759231845525,-500.0,0.00019178,2]
[388523857,1759231845535,-500.0,0.00019178,2]
[388523858,1759231845545,-943.33,0.00019178,2]
[388523859,1759231845554,-500.0,0.00019178,2]
[388523860,1759231845564,-500.0,0.00019178,2]
[388523861,1759231845573,-500.0,0.00019178,2]
[388523862,1759231845582,-1450.16,0.00019178,2]
[388523863,1759231845591,-500.0,0.00019178,2]
[388523864,1759231845601,-500.0,0.00019178,2]
[388523865,1759231845610,-500.0,0.00019178,2]
[388523866,1759231845620,-2977.58,0.00019178,2]
[388523867,1759231845629,-500.0,0.00019178,2]
[388523868,1759231845638,-3073.63,0.00019178,2]
[388523869,1759231845647,-947.66,0.00019178,2]
[388523870,1759231845657,-500.0,0.00019178,2]
[388523871,1759231845667,-500.0,0.00019178,2]
[388523872,1759231845677,-565.61,0.00019178,2]
[388523873,1759231845687,-500.0,0.00019178,2]
[388523874,1759231845696,-1061.68,0.00019178,2]
[388523875,1759231845708,-500.0,0.00019178,2]
[388523876,1759231845718,-500.0,0.00019178,2]
[388523882,1759231846184,-500.0,0.00019178,2]
[388523883,1759231846206,-500.0,0.00019178,2]
[388523884,1759231846223,-500.0,0.00019178,2]
[388523885,1759231846235,-701.6,0.00019178,2]
[388523886,1759231846246,-500.0,0.00019178,2]
[388523887,1759231846257,-500.0,0.00019178,2]
[388523888,1759231846268,-500.0,0.00019178,2]
[388523889,1759231846279,-500.0,0.00019178,2]
[388523890,1759231846290,-500.0,0.00019178,2]
[388523891,1759231846301,-500.0,0.00019178,2]
[388523892,1759231846312,-500.0,0.00019178,2]
[388523893,1759231846322,-500.0,0.00019178,2]
[388523894,1759231846335,-706.14,0.00019178,2]
[388523895,1759231846347,-300.32885979,0.00019178,2]
[388523896,1759231846358,-1211.02,0.00019178,2]
[388523897,1759231846376,-500.0,0.00019178,2]
[388523898,1759231846386,-2250.11,0.00019178,2]
[388523899,1759231846397,-500.0,0.00019178,2]
[388523900,1759231846408,-500.0,0.00019178,2]
[388523901,1759231846420,-500.0,0.00019178,2]
[388523902,1759231846432,-500.0,0.00019178,2]
[388523904,1759231846443,-500.0,0.00019178,2]
[388523906,1759231846454,-500.0,0.00019178,2]
[388523908,1759231846466,-1394.62,0.00019178,2]
[388523909,1759231846478,-150.92568335,0.00019178,2]
[388523910,1759231846490,-500.0,0.00019178,2]
[388523911,1759231846501,-500.0,0.00019178,2]
[388523912,1759231846512,-1544.34,0.00019178,2]
[388523913,1759231846523,-2459.99,0.00019178,2]
[388523914,1759231846535,-500.0,0.00019178,2]
[388523915,1759231846546,-500.0,0.00019178,2]
[388523916,1759231846556,-500.0,0.00019178,2]
[388523917,1759231846568,-1167.35,0.00019178,2]
[388523918,1759231846579,-500.0,0.00019178,2]
[388523919,1759231846590,-418.31960204,0.00019178,2]
[388523920,1759231846600,-738.96,0.00019178,2]
[388523921,1759231846611,-500.0,0.00019178,2]
[388523922,1759231846622,-500.0,0.00019178,2]
[388523923,1759231846632,-500.0,0.00019178,2]
[388523924,1759231846642,-2258.39,0.00019178,2]
[388523925,1759231846653,-500.0,0.00019178,2]
[388523926,1759231846663,-500.0,0.00019178,2]
[388523927,1759231846674,-772.02,0.00019178,2]
[388523928,1759231846686,-500.0,0.00019178,2]
[388523929,1759231846698,-2745.29,0.00019178,2]
[388523930,1759231846709,-1685.71,0.00019178,2]
[388523931,1759231846720,-500.0,0.00019178,2]
[388523932,1759231846731,-500.0,0.00019178,2]
[388523933,1759231846743,-564.08,0.00019178,2]
[388523934,1759231846754,-617.73637133,0.00019178,2]
[388523935,1759231846771,-500.0,0.00019178,2]
[388523936,1759231846782,-500.0,0.00019178,2]
[388523937,1759231846794,-500.0,0.00019178,2]
[388523938,1759231846805,-500.0,0.00019178,2]
[388523939,1759231846816,-575.42,0.00019178,2]
[388523940,1759231846828,-500.0,0.00019178,2]
[388523941,1759231846839,-500.0,0.00019178,2]
[388523942,1759231846851,-1281.0,0.00019178,2]
[388523943,1759231846863,-500.0,0.00019178,2]
[388523944,1759231846873,-1297.04,0.00019178,2]
[388523945,1759231846884,-500.0,0.00019178,2]
[388523946,1759231846895,-766.88,0.00019178,2]
[388523947,1759231846906,-848.28,0.00019178,2]
[388523948,1759231846918,-500.0,0.00019178,2]
[388523949,1759231846928,-1126.66,0.00019178,2]
[388523950,1759231846943,-2175.5,0.00019178,2]
[388523951,1759231846954,-500.0,0.00019178,2]
[388523952,1759231846965,-500.0,0.00019178,2]
[388523953,1759231846977,-500.0,0.00019178,2]
[388523954,1759231846988,-500.0,0.00019178,2]
[388523955,1759231846999,-519.49,0.00019178,2]
[388523956,1759231847011,-500.0,0.00019178,2]
[388523957,1759231847022,-500.0,0.00019178,2]
[388523958,1759231847033,-500.0,0.00019178,2]
[388523959,1759231847043,-784.29,0.00019178,2]
[388523960,1759231847054,-500.0,0.00019178,2]
[388523961,1759231847064,-858.79,0.00019178,2]
[388523962,1759231847075,-500.0,0.00019178,2]
[388523963,1759231847085,-500.0,0.00019178,2]
[388523964,1759231847097,-500.0,0.00019178,2]
[388523965,1759231847108,-2572.23,0.00019178,2]
[388523966,1759231847119,-500.0,0.00019178,2]
[388523967,1759231847131,-500.0,0.00019178,2]
[388523968,1759231847142,-500.0,0.00019178,2]
[388523969,1759231847153,-500.0,0.00019178,2]
[388523970,1759231847170,-500.0,0.00019178,2]
[388523971,1759231847181,-1765.39,0.00019178,2]
[388523972,1759231847192,-500.0,0.00019178,2]
[388523973,1759231847203,-500.0,0.00019178,2]
[388523974,1759231847215,-500.0,0.00019178,2]
[388523975,1759231847226,-1753.56,0.00019178,2]
[388523976,1759231847238,-994.59,0.00019178,2]
[388523977,1759231847249,-500.0,0.00019178,2]
[388523978,1759231847260,-500.0,0.00019178,2]
[388523979,1759231847270,-500.0,0.00019178,2]
[388523980,1759231847281,-500.0,0.00019178,2]
[388523981,1759231847292,-509.4,0.00019178,2]
[388523982,1759231847303,-500.0,0.00019178,2]
[388523983,1759231847314,-875.32,0.00019178,2]
[388523984,1759231847325,-500.0,0.00019178,2]
[388523985,1759231847339,-537.63,0.00019178,2]
[388523986,1759231847349,-500.0,0.00019178,2]
[388523987,1759231847360,-929.85,0.00019178,2]
[388523988,1759231847371,-726.89,0.00019178,2]
[388523989,1759231847382,-500.0,0.00019178,2]
[388523990,1759231847393,-500.0,0.00019178,2]
[388523991,1759231847403,-500.0,0.00019178,2]
[388523992,1759231847415,-500.0,0.00019178,2]
[388523993,1759231847427,-977.16,0.00019178,2]
[388523994,1759231847438,-942.53,0.00019178,2]
[388523995,1759231847449,-614.62,0.00019178,2]
[388523996,1759231847461,-1659.59,0.00019178,2]
[388523997,1759231847471,-500.0,0.00019178,2]
[388523998,1759231847482,-500.0,0.00019178,2]
[388523999,1759231847495,-500.0,0.00019178,2]
[388524000,1759231847506,-1804.92,0.00019178,2]
[388524001,1759231847517,-500.0,0.00019178,2]
[388524002,1759231847528,-500.0,0.00019178,2]
[388524003,1759231847540,-500.0,0.00019178,2]
[388524004,1759231847555,-994.34,0.00019178,2]
[388524005,1759231847566,-500.0,0.00019178,2]
[388524006,1759231847577,-500.0,0.00019178,2]
[388524007,1759231847589,-1550.21,0.00019178,2]
[388524008,1759231847599,-923.37,0.00019178,2]
[388524009,1759231847611,-500.0,0.00019178,2]
[388524010,1759231847622,-500.0,0.00019178,2]
[388524011,1759231847633,-1105.68,0.00019178,2]
[388524012,1759231847644,-500.0,0.00019178,2]
[388524013,1759231847655,-500.0,0.00019178,2]
[388524014,1759231847667,-1047.5,0.00019178,2]
[388524015,1759231847678,-400.24940698,0.00019178,2]
[388524016,1759231847690,-1398.49,0.00019178,2]
[388524017,1759231847702,-500.0,0.00019178,2]
[388524018,1759231847713,-500.0,0.00019178,2]
[388524019,1759231847725,-500.0,0.00019178,2]
[388524020,1759231847736,-500.0,0.00019178,2]
[388524021,1759231847748,-622.7,0.00019178,2]
[388524022,1759231847759,-500.0,0.00019178,2]
[388524023,1759231847772,-903.44,0.00019178,2]
[388524024,1759231847784,-500.0,0.00019178,2]
[388524025,1759231847795,-575.0,0.00019178,2]
[388524026,1759231847806,-500.0,0.00019178,2]
[388524027,1759231847818,-1148.61,0.00019178,2]
[388524028,1759231847829,-824.85,0.00019178,2]
[388524029,1759231847840,-500.0,0.00019178,2]
[388524030,1759231847851,-500.0,0.00019178,2]
[388524031,1759231847861,-651.71,0.00019178,2]
[388524032,1759231847872,-500.0,0.00019178,2]
[388524033,1759231847883,-500.0,0.00019178,2]
[388524034,1759231847894,-500.0,0.00019178,2]
[388524035,1759231847904,-500.0,0.00019178,2]
[388524036,1759231847915,-612.15,0.00019178,2]
[388524037,1759231847926,-574.65,0.00019178,2]
[388524038,1759231847938,-500.0,0.00019178,2]
[388524039,1759231847948,-500.0,0.00019178,2]
[388524040,1759231847959,-1557.12,0.00019178,2]
[388524041,1759231847970,-730.79,0.00019178,2]
[388524042,1759231847980,-500.0,0.00019178,2]
[388524043,1759231847991,-811.12,0.00019178,2]
[388524044,1759231848002,-1717.57,0.00019178,2]
[388524045,1759231848012,-500.0,0.00019178,2]
[388524046,1759231848023,-3136.06,0.00019178,2]
[388524047,1759231848033,-500.0,0.00019178,2]
[388524048,1759231848044,-500.0,0.00019178,2]
[388524049,1759231848054,-500.0,0.00019178,2]
[388524050,1759231848065,-500.0,0.00019178,2]
[388524051,1759231848076,-610.55,0.00019178,2]
[388524052,1759231848087,-500.0,0.00019178,2]
[388524053,1759231848097,-500.0,0.00019178,2]
[388524054,1759231848108,-2779.26,0.00019178,2]
[388524055,1759231848118,-1300.29,0.00019178,2]
[388524056,1759231848129,-500.0,0.00019178,2]
[388524057,1759231848140,-599.51,0.00019178,2]
[388524058,1759231848151,-500.0,0.00019178,2]
[388524059,1759231848161,-1500.91,0.00019178,2]
[388524060,1759231848171,-500.0,0.00019178,2]
[388524061,1759231848181,-500.0,0.00019178,2]
[388524062,1759231848192,-878.33,0.00019178,2]
[388524063,1759231848202,-500.0,0.00019178,2]
[388524064,1759231848226,-1264.75,0.00019178,2]
[388524065,1759231848240,-1052.86,0.00019178,2]
[388524066,1759231848250,-500.0,0.00019178,2]
[388524067,1759231848261,-726.19,0.00019178,2]
[388524068,1759231848272,-561.92,0.00019178,2]
[388524069,1759231848282,-500.0,0.00019178,2]
[388524070,1759231848293,-500.0,0.00019178,2]
[388524071,1759231848303,-500.0,0.00019178,2]
[388524072,1759231848314,-472.96987855,0.00019178,2]
[388524073,1759231848325,-1277.39,0.00019178,2]
[388524074,1759231848338,-500.0,0.00019178,2]
[388524075,1759231848350,-500.0,0.00019178,2]
[388524076,1759231848361,-1384.61,0.00019178,2]
[388524077,1759231848372,-903.02,0.00019178,2]
[388524078,1759231848382,-395.49348546,0.00019178,2]
[388524079,1759231848393,-1203.25,0.00019178,2]
[388524080,1759231848403,-525.07,0.00019178,2]
[388524081,1759231848414,-2135.25,0.00019178,2]
[388524082,1759231848426,-500.0,0.00019178,2]
[388524083,1759231848437,-500.0,0.00019178,2]
[388524084,1759231848448,-500.0,0.00019178,2]
[388524085,1759231848458,-1241.47,0.00019178,2]
[388524086,1759231848468,-500.0,0.00019178,2]
[388524087,1759231848478,-500.0,0.00019178,2]
[388524088,1759231848489,-1215.58,0.00019178,2]
[388524089,1759231848499,-1948.58,0.00019178,2]
[388524090,1759231848510,-500.0,0.00019178,2]
[388524091,1759231848520,-500.0,0.00019178,2]
[388524092,1759231848531,-888.67,0.00019178,2]
[388524093,1759231848543,-500.0,0.00019178,2]
[388524094,1759231848554,-4854.97,0.00019178,2]
[388524095,1759231848566,-1236.12,0.00019178,2]
[388524096,1759231848577,-500.0,0.00019178,2]
[388524097,1759231848589,-1593.71,0.00019178,2]
[388524098,1759231848600,-500.0,0.00019178,2]
[388524099,1759231848616,-500.0,0.00019178,2]
[388524100,1759231848626,-500.0,0.00019178,2]
[388524101,1759231848637,-500.0,0.00019178,2]
[388524102,1759231848648,-500.0,0.00019178,2]
[388524103,1759231848659,-677.31,0.00019178,2]
[388524104,1759231848669,-3282.38,0.00019178,2]
[388524105,1759231848680,-500.0,0.00019178,2]
[388524106,1759231848691,-874.34,0.00019178,2]
[388524107,1759231848701,-500.0,0.00019178,2]
[388524108,1759231848712,-500.0,0.00019178,2]
[388524109,1759231848722,-500.0,0.00019178,2]
[388524110,1759231848732,-500.0,0.00019178,2]
[388524111,1759231848743,-1322.16,0.00019178,2]
[388524112,1759231848752,-711.66,0.00019178,2]
[388524113,1759231848764,-500.0,0.00019178,2]
[388524114,1759231848775,-350.58599822,0.00019178,2]
[388524115,1759231848785,-1282.76,0.00019178,2]
[388524116,1759231848795,-500.0,0.00019178,2]
[388524117,1759231848808,-1172.47,0.00019178,2]
[388524118,1759231848819,-500.0,0.00019178,2]
[388524119,1759231848830,-622.3,0.00019178,2]
[388524120,1759231848842,-1188.4,0.00019178,2]
[388524121,1759231848854,-3321.01,0.00019178,2]
[388524122,1759231848865,-500.0,0.00019178,2]
[388524123,1759231848876,-500.0,0.00019178,2]
[388524124,1759231848888,-535.32,0.00019178,2]
[388524125,1759231848898,-500.0,0.00019178,2]
[388524126,1759231848909,-500.0,0.00019178,2]
[388524127,1759231848920,-500.0,0.00019178,2]
[388524128,1759231848931,-500.0,0.00019178,2]
[388524129,1759231848943,-4334.58,0.00019178,2]
[388524130,1759231848954,-500.0,0.00019178,2]
[388524131,1759231848964,-936.56,0.00019178,2]
[388524132,1759231848975,-500.0,0.00019178,2]
[388524133,1759231848985,-500.0,0.00019178,2]
[388524134,1759231849000,-500.0,0.00019178,2]
[388524135,1759231849012,-500.0,0.00019178,2]
[388524136,1759231849023,-801.2,0.00019178,2]
[388524137,1759231849034,-976.02,0.00019178,2]
[388524138,1759231849045,-955.48,0.00019178,2]
[388524139,1759231849055,-500.0,0.00019178,2]
[388524140,1759231849066,-500.0,0.00019178,2]
[388524141,1759231849076,-945.28,0.00019178,2]
[388524142,1759231849088,-500.0,0.00019178,2]
[388524143,1759231849099,-1635.35,0.00019178,2]
[388524144,1759231849109,-500.0,0.00019178,2]
[388524145,1759231849120,-500.0,0.00019178,2]
[388524146,1759231849131,-500.0,0.00019178,2]
[388524147,1759231849143,-500.0,0.00019178,2]
[388524148,1759231849153,-500.0,0.00019178,2]
[388524149,1759231849163,-516.63,0.00019178,2]
[388524150,1759231849174,-405.7561533,0.00019178,2]
[388524151,1759231849184,-511.78,0.00019178,2]
[388524152,1759231849195,-500.0,0.00019178,2]
[388524153,1759231849205,-500.0,0.00019178,2]
[388524154,1759231849216,-2142.6,0.00019178,2]
[388524155,1759231849227,-500.0,0.00019178,2]
[388524156,1759231849239,-500.0,0.00019178,2]
[388524157,1759231849249,-1598.52,0.00019178,2]
[388524158,1759231849260,-500.0,0.00019178,2]
[388524159,1759231849271,-500.0,0.00019178,2]
[388524160,1759231849281,-500.0,0.00019178,2]
[388524161,1759231849292,-500.0,0.00019178,2]
[388524162,1759231849303,-2195.68,0.00019178,2]
[388524163,1759231849317,-159.98825202,0.00019178,2]
[388524164,1759231849330,-500.0,0.00019178,2]
[388524165,1759231849348,-500.0,0.00019178,2]
[388524166,1759231849359,-2712.9,0.00019178,2]
[388524167,1759231849370,-500.0,0.00019178,2]
[388524168,1759231849381,-4667.66,0.00019178,2]
[388524169,1759231849392,-1270.77,0.00019178,2]
[388524170,1759231849409,-804.5,0.00019178,2]
[388524171,1759231849420,-4692.73,0.00019178,2]
[388524172,1759231849431,-500.0,0.00019178,2]
[388524173,1759231849444,-500.0,0.00019178,2]
[388524174,1759231849455,-694.83,0.00019178,2]
[388524175,1759231849466,-947.52,0.00019178,2]
[388524176,1759231849476,-500.0,0.00019178,2]
[388524177,1759231849487,-500.0,0.00019178,2]
[388524178,1759231849497,-500.0,0.00019178,2]
[388524179,1759231849507,-868.91,0.00019178,2]
[388524180,1759231849517,-4949.68,0.00019178,2]
[388524181,1759231849528,-727.58,0.00019178,2]
[388524182,1759231849539,-500.0,0.00019178,2]
[388524183,1759231849549,-500.0,0.00019178,2]
[388524184,1759231849560,-500.0,0.00019178,2]
[388524185,1759231849570,-500.0,0.00019178,2]
[388524186,1759231849581,-1191.6,0.00019178,2]
[388524187,1759231849592,-500.0,0.00019178,2]
[388524188,1759231849603,-3498.06,0.00019178,2]
[388524189,1759231849614,-500.0,0.00019178,2]
[388524190,1759231849624,-724.05,0.00019178,2]
[388524191,1759231849634,-649.82017151,0.00019178,2]
[388524192,1759231849644,-500.0,0.00019178,2]
[388524193,1759231849656,-500.0,0.00019178,2]
[388524194,1759231849666,-3450.27,0.00019178,2]
[388524195,1759231849677,-500.0,0.00019178,2]
[388524196,1759231849688,-778.49,0.00019178,2]
[388524197,1759231849700,-500.0,0.00019178,2]
[388524198,1759231849712,-754.66,0.00019178,2]
[388524199,1759231849723,-500.0,0.00019178,2]
[388524200,1759231849735,-500.0,0.00019178,2]
[388524201,1759231849746,-500.0,0.00019178,2]
[388524202,1759231849757,-500.0,0.00019178,2]
[388524203,1759231849769,-500.0,0.00019178,2]
[388524204,1759231849784,-500.0,0.00019178,2]
[388524205,1759231849796,-500.0,0.00019178,2]
[388524206,1759231849807,-500.0,0.00019178,2]
[388524207,1759231849817,-500.0,0.00019178,2]
[388524208,1759231849828,-3955.01,0.00019178,2]
[388524209,1759231849839,-500.0,0.00019178,2]
[388524210,1759231849849,-2603.99,0.00019178,2]
[388524211,1759231849859,-500.0,0.00019178,2]
[388524212,1759231849871,-556.09,0.00019178,2]
[388524213,1759231849882,-500.0,0.00019178,2]
[388524214,1759231849894,-1328.37,0.00019178,2]
[388524215,1759231849905,-500.0,0.00019178,2]
[388524216,1759231849916,-500.0,0.00019178,2]
[388524217,1759231849926,-3846.13,0.00019178,2]
[388524218,1759231849936,-500.0,0.00019178,2]
[388524219,1759231849947,-500.0,0.00019178,2]
[388524220,1759231849957,-500.0,0.00019178,2]
[388524221,1759231849967,-500.0,0.00019178,2]
[388524222,1759231849977,-500.0,0.00019178,2]
[388524223,1759231849988,-500.0,0.00019178,2]
[388524224,1759231850000,-962.29,0.00019178,2]
[388524225,1759231850012,-500.0,0.00019178,2]
[388524226,1759231850022,-2331.81,0.00019178,2]
[388524227,1759231850032,-500.0,0.00019178,2]
[388524228,1759231850043,-500.0,0.00019178,2]
[388524229,1759231850053,-2006.83,0.00019178,2]
[388524230,1759231850064,-3262.15,0.00019178,2]
[388524231,1759231850074,-2574.2,0.00019178,2]
[388524232,1759231850085,-3113.25,0.00019178,2]
[388524233,1759231850095,-500.0,0.00019178,2]
[388524234,1759231850105,-500.0,0.00019178,2]
[388524235,1759231850116,-564.94,0.00019178,2]
[388524236,1759231850126,-2500.28,0.00019178,2]
[388524237,1759231850136,-1868.34,0.00019178,2]
[388524238,1759231850146,-500.0,0.00019178,2]
[388524239,1759231850157,-500.0,0.00019178,2]
[388524240,1759231850167,-500.0,0.00019178,2]
[388524241,1759231850177,-5949.32,0.00019178,2]
[388524242,1759231850188,-500.0,0.00019178,2]
[388524243,1759231850200,-4520.16,0.00019178,2]
[388524244,1759231850210,-3149.13,0.00019178,2]
[388524245,1759231850220,-500.0,0.00019178,2]
[388524246,1759231850231,-500.0,0.00019178,2]
[388524247,1759231850241,-1512.33,0.00019178,2]
[388524248,1759231850252,-606.71844289,0.00019178,2]
[388524249,1759231850262,-500.0,0.00019178,2]
[388524250,1759231850275,-3286.89,0.00019178,2]
[388524251,1759231850285,-565.35,0.00019178,2]
[388524252,1759231850295,-500.0,0.00019178,2]
[388524253,1759231850305,-500.0,0.00019178,2]
[388524254,1759231850315,-500.0,0.00019178,2]
[388524255,1759231850325,-1409.36,0.00019178,2]
[388524256,1759231850337,-559.42,0.00019178,2]
[388524257,1759231850351,-4215.15,0.00019178,2]
[388524258,1759231850366,-3862.23,0.00019178,2]
[388524259,1759231850377,-1039.72,0.00019178,2]
[388524260,1759231850388,-500.0,0.00019178,2]
[388524261,1759231850399,-500.0,0.00019178,2]
[388524262,1759231850409,-555.63,0.00019178,2]
[388524263,1759231850421,-500.0,0.00019178,2]
[388524264,1759231850432,-1589.15,0.00019178,2]
[388524265,1759231850443,-500.0,0.00019178,2]
[388524266,1759231850463,-500.0,0.00019178,2]
[388524267,1759231850476,-4816.48,0.00019178,2]
[388524268,1759231850486,-500.0,0.00019178,2]
[388524269,1759231850497,-3388.66,0.00019178,2]
[388524270,1759231850507,-500.0,0.00019178,2]
[388524271,1759231850519,-500.0,0.00019178,2]
[388524272,1759231850529,-719.87,0.00019178,2]
[388524273,1759231850541,-4445.0,0.00019178,2]
[388524274,1759231850551,-500.0,0.00019178,2]
[388524275,1759231850562,-500.0,0.00019178,2]
[388524276,1759231850572,-500.0,0.00019178,2]
[388524277,1759231850582,-500.0,0.00019178,2]
[388524278,1759231850593,-772.02,0.00019178,2]
[388524279,1759231850604,-595.66,0.00019178,2]
[388524280,1759231850614,-4258.15,0.00019178,2]
[388524281,1759231850625,-500.0,0.00019178,2]
[388524282,1759231850635,-648.61,0.00019178,2]
[388524283,1759231850645,-500.0,0.00019178,2]
[388524284,1759231850656,-500.0,0.00019178,2]
[388524285,1759231850666,-500.0,0.00019178,2]
[388524286,1759231850676,-938.24,0.00019178,2]
[388524287,1759231850687,-2590.57,0.00019178,2]
[388524288,1759231850698,-500.0,0.00019178,2]
[388524289,1759231850709,-500.0,0.00019178,2]
[388524290,1759231850721,-1878.59,0.00019178,2]
[388524291,1759231850733,-500.0,0.00019178,2]
[388524292,1759231850744,-633.52,0.00019178,2]
[388524293,1759231850757,-190.78486717,0.00019178,2]
[388524294,1759231850769,-1424.84,0.00019178,2]
[388524295,1759231850781,-2642.53,0.00019178,2]
[388524296,1759231850792,-500.0,0.00019178,2]
[388524297,1759231850804,-500.0,0.00019178,2]
[388524298,1759231850815,-500.0,0.00019178,2]
[388524299,1759231850827,-500.0,0.00019178,2]
[388524300,1759231850839,-500.0,0.00019178,2]
[388524301,1759231850850,-500.0,0.00019178,2]
[388524302,1759231850862,-500.0,0.00019178,2]
[388524304,1759231850874,-3319.69,0.00019178,2]
[388524305,1759231851485,-500.0,0.00019178,2]
[388524306,1759231851495,-589.78,0.00019178,2]
[388524307,1759231851504,-500.0,0.00019178,2]
[388524308,1759231851514,-2597.07,0.00019178,2]
[388524309,1759231851523,-500.0,0.00019178,2]
[388524310,1759231851533,-2760.01,0.00019178,2]
[388524311,1759231851542,-500.0,0.00019178,2]
[388524312,1759231851551,-2941.55,0.00019178,2]
[388524313,1759231851561,-500.0,0.00019178,2]
[388524314,1759231851571,-1894.6,0.00019178,2]
[388524315,1759231851581,-500.0,0.00019178,2]
[388524316,1759231851590,-1608.2,0.00019178,2]
[388524317,1759231851600,-500.0,0.00019178,2]
[388524318,1759231851610,-4298.03,0.00019178,2]
[388524319,1759231851621,-500.0,0.00019178,2]
[388524320,1759231851631,-1487.11,0.00019178,2]
[388524321,1759231851642,-5230.97,0.00019178,2]
[388524322,1759231851652,-546.28,0.00019178,2]
[388524323,1759231851662,-500.0,0.00019178,2]
[388524324,1759231851672,-500.0,0.00019178,2]
[388524325,1759231851682,-501.77,0.00019178,2]
[388524326,1759231851692,-299.13171675,0.00019178,2]
[388524327,1759231851702,-151.0,0.00019178,2]